fUST/lending_fUST_20250729
["ID","MTS","AMOUNT","RATE_DAILY","PERIOD"]
[375855590,1753761061342,-151.0,0.00020821,2]
[375855591,1753761061351,-677.07,0.00020821,2]
[375855592,1753761061361,-460.0,0.00020821,2]
[375855593,1753761061371,-460.0,0.00020821,2]
[375855594,1753761061380,-460.0,0.00020821,2]
[375855595,1753761061390,-460.0,0.00020821,2]
[375855596,1753761061400,-460.0,0.00020821,2]
[375855597,1753761061410,-460.0,0.00020821,2]
[375855598,1753761061419,-460.0,0.00020821,2]
[375855599,1753761061430,-460.0,0.00020821,2]
[375855600,1753761061440,-1312.28,0.00020821,2]
[375855601,1753761061449,-4062.25,0.00020821,2]
[375855602,1753761061459,-460.0,0.00020821,2]
[375855603,1753761061468,-507.69,0.00020821,2]
[375855604,1753761061478,-460.0,0.00020821,2]
[375855605,1753761061488,-460.0,0.00020821,2]
[375855606,1753761061499,-460.0,0.00020821,2]
[375855607,1753761061509,-460.0,0.00020821,2]
[375855608,1753761061520,-460.0,0.00020821,2]
[375855609,1753761061531,-1446.3,0.00020821,2]
[375855610,1753761061543,-1517.24,0.00020821,2]
[375855611,1753761061563,-2024.35,0.00020821,2]
[375855612,1753761061575,-1485.27,0.00020821,2]
[375855613,1753761061586,-460.0,0.00020821,2]
[375855614,1753761061718,-642.03,0.00020821,2]
[375855615,1753761061729,-460.0,0.00020821,2]
[375855616,1753761061739,-460.0,0.00020821,2]
[375855617,1753761061749,-5256.15,0.00020821,2]
[375855618,1753761061759,-460.0,0.00020821,2]
[375855619,1753761061770,-460.0,0.00020821,2]
[375855620,1753761061780,-468.28582491,0.00020821,2]
[375855621,1753761061792,-460.0,0.00020821,2]
[375855622,1753761061801,-460.0,0.00020821,2]
[375855623,1753761061811,-460.0,0.00020821,2]
[375855624,1753761061823,-460.0,0.00020821,2]
[375855625,1753761061833,-460.0,0.00020821,2]
[375855626,1753761061843,-460.0,0.00020821,2]
[375855627,1753761061853,-460.0,0.00020821,2]
[375855628,1753761061862,-460.0,0.00020821,2]
[375855629,1753761061871,-619.29,0.00020821,2]
[375855630,1753761061881,-1531.4,0.00020821,2]
[375855631,1753761061891,-460.0,0.00020821,2]
[375855632,1753761061900,-460.0,0.00020821,2]
[375855633,1753761061910,-588.78,0.00020821,2]
[375855634,1753761061921,-460.0,0.00020821,2]
[375855635,1753761061932,-710.26,0.00020821,2]
[375855636,1753761061943,-460.0,0.00020821,2]
[375855637,1753761061952,-643.23,0.00020821,2]
[375855638,1753761061963,-460.0,0.00020821,2]
[375855639,1753761061974,-499.7,0.00020821,2]
[375855640,1753761061984,-732.76,0.00020821,2]
[375855641,1753761061993,-460.0,0.00020821,2]
[375855642,1753761062003,-211.423559,0.00020854,2]
[375855643,1753761062014,-2000.0,0.00020941,2]
[375855644,1753761062023,-4000.0,0.00020996,3]
[375855645,1753761062033,-151.0,0.00021,4]
[375855646,1753761062043,-3000.0,0.00021011,3]
[375855647,1753761062052,-325.08091824,0.00021067,2]
[375855648,1753761062062,-3000.0,0.00021068,3]
[375855649,1753761062071,-1009.14387867,0.00021068,2]
[375855650,1753761062082,-1501.93957377,0.00021068,2]
[375855651,1753761062091,-1500.0,0.00021068,2]
[375855652,1753761062101,-152.9647989,0.00021069,2]
[375855653,1753761062111,-606.55167743,0.00021095,2]
[375855654,1753761062122,-460.0,0.00021095,2]
[375855655,1753761062132,-460.0,0.00021095,2]
[375855656,1753761062141,-465.37787497,0.00021095,2]
[375855657,1753761062151,-460.0,0.00021095,2]
[375855658,1753761062160,-460.0,0.00021095,2]
[375855659,1753761062169,-460.0,0.00021095,2]
[375855660,1753761062181,-460.0,0.00021095,2]
[375855661,1753761062190,-460.0,0.00021095,2]
[375855662,1753761062201,-460.0,0.00021095,2]
[375855663,1753761062210,-503.68,0.00021095,2]
[375855664,1753761062221,-698.846,0.00021095,2]
[375855665,1753761062231,-460.0,0.00021095,2]
[375855666,1753761062241,-151.0,0.00021095,2]
[375855667,1753761062251,-460.0,0.00021095,2]
[375855668,1753761062260,-257.79064224,0.00021095,2]
[375855669,1753761062271,-151.0,0.00021095,2]
[375855670,1753761062280,-151.0,0.00021095,2]
[375855671,1753761062290,-460.0,0.00021095,2]
[375855672,1753761062299,-225.772736,0.00021095,2]
[375855673,1753761062309,-151.0,0.00021095,2]
[375855674,1753761062318,-161.334964,0.00021095,2]
[375855675,1753761062327,-460.0,0.00021095,2]
[375855676,1753761062338,-460.0,0.00021095,2]
[375855677,1753761062348,-573.77,0.00021095,2]
[375855678,1753761062358,-460.0,0.00021095,2]
[375855679,1753761062367,-460.0,0.00021095,2]
[375855680,1753761062376,-151.0,0.00021095,2]
[375855681,1753761062386,-460.0,0.00021095,2]
[375855682,1753761062396,-151.0,0.00021095,2]
[375855683,1753761062406,-460.0,0.00021095,2]
[375855684,1753761062415,-460.0,0.00021095,2]
[375855685,1753761062425,-460.0,0.00021095,2]
[375855686,1753761062435,-460.0,0.00021095,2]
[375855687,1753761062444,-460.0,0.00021095,2]
[375855688,1753761062454,-460.0,0.00021095,2]
[375855689,1753761062464,-460.0,0.00021095,2]
[375855690,1753761062474,-460.0,0.00021095,2]
[375855691,1753761062484,-460.0,0.00021095,2]
[375855692,1753761062495,-460.0,0.00021095,2]
[375855693,1753761062505,-460.0,0.00021095,2]
[375855694,1753761062517,-1335.28,0.00021095,2]
[375855695,1753761062528,-777.31,0.00021095,2]
[375855696,1753761062537,-562.88,0.00021095,2]
[375855697,1753761062547,-478.4309536,0.00021095,2]
[375855698,1753761062557,-1502.01,0.00021095,2]
[375855699,1753761062566,-460.0,0.00021095,2]
[375855700,1753761062576,-460.0,0.00021095,2]
[375855701,1753761062585,-460.0,0.00021095,2]
[375855702,1753761062595,-468.64273921,0.00021095,2]
[375855703,1753761062604,-151.0,0.00021095,2]
[375855704,1753761062614,-151.0,0.00021095,2]
[375855705,1753761062623,-485.87,0.00021095,2]
[375855706,1753761062634,-668.72,0.00021095,2]
[375855707,1753761062645,-460.0,0.00021095,2]
[375855708,1753761062655,-460.0,0.00021095,2]
[375855709,1753761062665,-460.0,0.00021095,2]
[375855710,1753761062675,-700.79611,0.00021095,2]
[375855711,1753761062685,-700.79611,0.00021095,2]
[375855712,1753761062695,-1802.22,0.00021095,2]
[375855713,1753761062705,-460.0,0.00021095,2]
[375855714,1753761062715,-460.0,0.00021095,2]
[375855715,1753761062726,-616.74,0.00021095,2]
[375855716,1753761062736,-481.84716115,0.00021095,2]
[375855717,1753761062746,-551.83,0.00021095,2]
[375855718,1753761062756,-460.0,0.00021095,2]
[375855719,1753761062768,-460.0,0.00021095,2]
[375855720,1753761062778,-460.0,0.00021095,2]
[375855721,1753761062787,-466.51538751,0.00021095,2]
[375855722,1753761062798,-151.0,0.00021095,2]
[375855723,1753761062808,-467.90495523,0.00021095,2]
[375855724,1753761062818,-460.0,0.00021095,2]
[375855725,1753761062828,-460.0,0.00021095,2]
[375855726,1753761062838,-2141.78,0.00021095,2]
[375855727,1753761062847,-460.0,0.00021095,2]
[375855728,1753761062856,-1387.47,0.00021095,2]
[375855729,1753761062866,-677.07,0.00021095,2]
[375855730,1753761062875,-460.0,0.00021095,2]
[375855731,1753761062885,-151.0,0.00021095,2]
[375855732,1753761062895,-151.0,0.00021095,2]
[375855733,1753761062905,-460.0,0.00021095,2]
[375855734,1753761062914,-460.0,0.00021095,2]
[375855735,1753761062925,-460.0,0.00021095,2]
[375855736,1753761062934,-460.0,0.00021095,2]
[375855737,1753761062945,-470.02848119,0.00021095,2]
[375855738,1753761062954,-460.0,0.00021095,2]
[375855739,1753761062965,-460.0,0.00021095,2]
[375855740,1753761062975,-1312.28,0.00021095,2]
[375855741,1753761062984,-4062.25,0.00021095,2]
[375855742,1753761062994,-460.0,0.00021095,2]
[375855743,1753761063003,-507.69,0.00021095,2]
[375855744,1753761063013,-466.47247173,0.00021095,2]
[375855745,1753761063024,-460.0,0.00021095,2]
[375855746,1753761063034,-448.27908609,0.00021095,2]
[375855747,1753761063044,-468.37801871,0.00021095,2]
[375855748,1753761063053,-460.0,0.00021095,2]
[375855749,1753761063063,-210.825538,0.00021095,2]
[375855750,1753761063072,-210.825538,0.00021095,2]
[375855751,1753761063083,-1517.24,0.00021095,2]
[375855752,1753761063093,-1446.3,0.00021095,2]
[375855753,1753761063103,-2024.35,0.00021095,2]
[375855754,1753761063112,-1485.27,0.00021095,2]
[375855755,1753761063123,-460.0,0.00021095,2]
[375855756,1753761063132,-460.0,0.00021095,2]
[375855757,1753761063142,-642.03,0.00021095,2]
[375855758,1753761063151,-460.0,0.00021095,2]
[375855759,1753761063161,-5256.15,0.00021095,2]
[375855760,1753761063171,-460.0,0.00021095,2]
[375855761,1753761063182,-460.0,0.00021095,2]
[375855762,1753761063192,-460.0,0.00021095,2]
[375855763,1753761063202,-460.0,0.00021095,2]
[375855764,1753761063212,-536.44884136,0.00021095,2]
[375855765,1753761063222,-460.0,0.00021095,2]
[375855766,1753761063232,-460.0,0.00021095,2]
[375855767,1753761063242,-460.0,0.00021095,2]
[375855768,1753761063252,-460.0,0.00021095,2]
[375855769,1753761063261,-619.29,0.00021095,2]
[375855770,1753761063271,-1531.4,0.00021095,2]
[375855771,1753761063281,-460.0,0.00021095,2]
[375855772,1753761063290,-460.0,0.00021095,2]
[375855773,1753761063300,-588.78,0.00021095,2]
[375855774,1753761063311,-460.0,0.00021095,2]
[375855775,1753761063321,-710.26,0.00021095,2]
[375855776,1753761063331,-460.0,0.00021095,2]
[375855777,1753761063340,-643.23,0.00021095,2]
[375855778,1753761063350,-151.0,0.00021095,2]
[375855779,1753761063360,-460.0,0.00021095,2]
[375855780,1753761063370,-499.7,0.00021095,2]
[375855781,1753761063380,-732.76,0.00021095,2]
[375855782,1753761063389,-460.0,0.00021095,2]
[375855783,1753761063399,-4000.0,0.00021096,3]
[375855784,1753761063408,-230.579603,0.00021096,2]
[375855785,1753761063418,-2000.0,0.00021116,2]
[375855786,1753761063427,-3022.7,0.00021126,3]
[375855787,1753761063438,-151.0,0.00021126,2]
[375855788,1753761063447,-3000.0,0.00021198,3]
[375855789,1753761063457,-168.0,0.00021229,2]
[375855790,1753761063467,-5000.0,0.00021241,3]
[375855791,1753761063476,-168.0,0.00021252,2]
[375855792,1753761063486,-151.0,0.000213,4]
[375855793,1753761063495,-393.3,0.00021343,4]
[375855794,1753761063506,-200.0,0.00021367,15]
[375855795,1753761063516,-200.0,0.00021367,15]
[375855796,1753761063526,-200.0,0.00021367,15]
[375855797,1753761063536,-200.0,0.00021367,15]
[375855798,1753761063546,-320.0,0.00021367,15]
[375855799,1753761063556,-246.71041,0.00021368,2]
[375855800,1753761063566,-246.71041,0.00021368,2]
[375855801,1753761063576,-460.0,0.00021369,2]
[375855802,1753761063586,-460.0,0.00021369,2]
[375855803,1753761063596,-460.0,0.00021369,2]
[375855804,1753761063606,-460.0,0.00021369,2]
[375855805,1753761063616,-460.0,0.00021369,2]
[375855806,1753761063626,-460.0,0.00021369,2]
[375855807,1753761063638,-460.0,0.00021369,2]
[375855808,1753761063648,-460.0,0.00021369,2]
[375855809,1753761063658,-503.68,0.00021369,2]
[375855810,1753761063668,-460.0,0.00021369,2]
[375855811,1753761063678,-460.0,0.00021369,2]
[375855812,1753761063688,-460.0,0.00021369,2]
[375855813,1753761063698,-460.0,0.00021369,2]
[375855814,1753761063711,-460.0,0.00021369,2]
[375855815,1753761063721,-573.77,0.00021369,2]
[375855816,1753761063731,-509.17402009,0.00021369,2]
[375855817,1753761063741,-460.0,0.00021369,2]
[375855818,1753761063750,-460.0,0.00021369,2]
[375855819,1753761063761,-460.0,0.00021369,2]
[375855820,1753761063773,-460.0,0.00021369,2]
[375855821,1753761063782,-460.0,0.00021369,2]
[375855822,1753761063792,-460.0,0.00021369,2]
[375855823,1753761063803,-460.0,0.00021369,2]
[375855824,1753761063812,-460.0,0.00021369,2]
[375855825,1753761063822,-460.0,0.00021369,2]
[375855826,1753761063832,-469.98702605,0.00021369,2]
[375855827,1753761063841,-460.0,0.00021369,2]
[375855828,1753761063850,-460.0,0.00021369,2]
[375855829,1753761063860,-151.0,0.00021369,2]
[375855830,1753761063870,-460.0,0.00021369,2]
[375855831,1753761063880,-1335.28,0.00021369,2]
[375855832,1753761063889,-777.31,0.00021369,2]
[375855833,1753761063899,-562.88,0.00021369,2]
[375855834,1753761063909,-1502.01,0.00021369,2]
[375855835,1753761063918,-475.07432688,0.00021369,2]
[375855836,1753761063928,-460.0,0.00021369,2]
[375855837,1753761063937,-460.0,0.00021369,2]
[375855838,1753761063947,-485.87,0.00021369,2]
[375855839,1753761063956,-668.72,0.00021369,2]
[375855840,1753761064085,-460.0,0.00021369,2]
[375855841,1753761064096,-460.0,0.00021369,2]
[375855842,1753761064106,-460.0,0.00021369,2]
[375855843,1753761064115,-1802.22,0.00021369,2]
[375855844,1753761064125,-460.0,0.00021369,2]
[375855845,1753761064134,-460.0,0.00021369,2]
[375855846,1753761064144,-616.74,0.00021369,2]
[375855847,1753761064154,-551.83,0.00021369,2]
[375855848,1753761064164,-460.0,0.00021369,2]
[375855849,1753761064174,-460.0,0.00021369,2]
[375855850,1753761064184,-324.60871888,0.00021369,2]
[375855851,1753761064194,-460.0,0.00021369,2]
[375855852,1753761064204,-460.0,0.00021369,2]
[375855853,1753761064213,-2141.78,0.00021369,2]
[375855854,1753761064224,-460.0,0.00021369,2]
[375855855,1753761064233,-1387.47,0.00021369,2]
[375855856,1753761064243,-677.07,0.00021369,2]
[375855857,1753761064254,-460.0,0.00021369,2]
[375855858,1753761064265,-460.0,0.00021369,2]
[375855859,1753761064275,-460.0,0.00021369,2]
[375855860,1753761064285,-460.0,0.00021369,2]
[375855861,1753761064295,-460.0,0.00021369,2]
[375855862,1753761064305,-460.0,0.00021369,2]
[375855863,1753761064315,-460.0,0.00021369,2]
[375855864,1753761064325,-1312.28,0.00021369,2]
[375855865,1753761064334,-4062.25,0.00021369,2]
[375855866,1753761064344,-460.0,0.00021369,2]
[375855867,1753761064354,-507.69,0.00021369,2]
[375855868,1753761064365,-460.0,0.00021369,2]
[375855869,1753761064375,-460.0,0.00021369,2]
[375855870,1753761064384,-1517.24,0.00021369,2]
[375855871,1753761064395,-1446.3,0.00021369,2]
[375855872,1753761064404,-2024.35,0.00021369,2]
[375855873,1753761064415,-1485.27,0.00021369,2]
[375855874,1753761064425,-460.0,0.00021369,2]
[375855875,1753761064435,-460.0,0.00021369,2]
[375855876,1753761064446,-642.03,0.00021369,2]
[375855877,1753761064456,-460.0,0.00021369,2]
[375855878,1753761064466,-5256.15,0.00021369,2]
[375855879,1753761064476,-460.0,0.00021369,2]
[375855880,1753761064486,-460.0,0.00021369,2]
[375855881,1753761064496,-460.0,0.00021369,2]
[375855882,1753761064506,-460.0,0.00021369,2]
[375855883,1753761064518,-460.0,0.00021369,2]
[375855884,1753761064528,-460.0,0.00021369,2]
[375855885,1753761064539,-460.0,0.00021369,2]
[375855886,1753761064550,-619.29,0.00021369,2]
[375855887,1753761064560,-460.0,0.00021369,2]
[375855888,1753761064570,-1531.4,0.00021369,2]
[375855889,1753761064580,-460.0,0.00021369,2]
[375855890,1753761064590,-588.78,0.00021369,2]
[375855891,1753761064600,-460.0,0.00021369,2]
[375855892,1753761064610,-176.5683931,0.00021369,2]
[375855893,1753761064620,-460.0,0.00021369,2]
[375855894,1753761064631,-710.26,0.00021369,2]
[375855895,1753761064643,-643.23,0.00021369,2]
[375855896,1753761064653,-460.0,0.00021369,2]
[375855897,1753761064663,-499.7,0.00021369,2]
[375855898,1753761064675,-732.76,0.00021369,2]
[375855899,1753761064684,-460.0,0.00021369,2]
[375855900,1753761064693,-856.11909664,0.000214,2]
[375855901,1753761064711,-1208.29793309,0.000214,2]
[375855902,1753761064734,-2727.60865254,0.000214,2]
[375855903,1753761064744,-330.889961,0.00021413,2]
[375855904,1753761064754,-500.0,0.00021473,2]
[375855905,1753761064766,-151.0,0.00021473,2]
[375855906,1753761064776,-151.0,0.00021473,2]
[375855907,1753761064787,-151.0,0.00021473,2]
[375855908,1753761064797,-700.79611,0.00021473,2]
[375855909,1753761064806,-700.79611,0.00021473,2]
[375855910,1753761064816,-168.0,0.00021473,2]
[375855911,1753761064827,-205.72874,0.0002149,2]
[375855912,1753761064837,-151.0,0.00021499,2]
[375855913,1753761064846,-151.857537,0.00021499,2]
[375855914,1753761064856,-151.0,0.00021499,2]
[375855915,1753761064866,-151.0,0.00021499,2]
[375855916,1753761064876,-151.0,0.00021499,2]
[375855917,1753761064885,-151.0,0.00021499,2]
[375855918,1753761064895,-151.0,0.00021499,2]
[375855919,1753761064905,-108434.04806719,0.000215,2]
[375855920,1753761065054,-319002.27677087,0.000215,2]
[375855921,1753761065064,-997.78256394,0.000215,2]
[375855922,1753761065074,-29626.32,0.000215,2]
[375855923,1753761065084,-1313.19,0.000215,2]
[375855924,1753761065094,-129216.05,0.000215,2]
[375855925,1753761065103,-192016.82,0.000215,2]
[375855926,1753761065113,-107916.82,0.000215,2]
[375855927,1753761065122,-151.0,0.000215,2]
[375855928,1753761065132,-2822.96519515,0.000215,2]
[375855929,1753761065142,-151.0,0.000215,2]
[375855930,1753761065152,-249.221861,0.000215,2]
[375855931,1753761065162,-2348.0,0.000215,2]
[375855932,1753761065171,-2348.0,0.000215,2]
[375855933,1753761065181,-2348.0,0.000215,2]
[375855934,1753761065191,-2348.0,0.000215,2]
[375855935,1753761065201,-2348.0,0.000215,2]
[375855936,1753761065210,-151.0,0.000215,2]
[375855937,1753761065220,-151.0,0.000215,2]
[375855938,1753761065229,-2211.61,0.000215,2]
[375855939,1753761065239,-151.0,0.000215,2]
[375855940,1753761065248,-151.0,0.000215,2]
[375855941,1753761065258,-152.095543,0.000215,2]
[375855942,1753761065268,-151.0,0.000215,2]
[375855943,1753761065279,-151.0,0.000215,2]
[375855944,1753761065289,-151.0,0.000215,2]
[375855945,1753761065298,-151.0,0.000215,2]
[375855946,1753761065309,-151.0,0.000215,2]
[375855947,1753761065329,-151.0,0.000215,2]
[375855948,1753761065339,-151.0,0.000215,2]
[375855949,1753761065348,-151.0,0.000215,2]
[375855950,1753761065358,-151.0,0.000215,2]
[375855951,1753761065367,-296.108513,0.000215,2]
[375855952,1753761065377,-151.0,0.000215,2]
[375855953,1753761065387,-151.0,0.000215,2]
[375855954,1753761065396,-151.0,0.000215,2]
[375855955,1753761065406,-151.0,0.000215,2]
[375855956,1753761065416,-151.0,0.000215,2]
[375855957,1753761065425,-151.0,0.000215,2]
[375855958,1753761065435,-151.0,0.000215,2]
[375855959,1753761065446,-151.612625,0.000215,2]
[375855960,1753761065455,-151.0,0.000215,2]
[375855961,1753761065464,-151.0,0.000215,2]
[375855962,1753761065475,-151.0,0.000215,2]
[375855963,1753761065484,-151.487947,0.000215,2]
[375855964,1753761065493,-151.0,0.000215,2]
[375855965,1753761065503,-152.537207,0.000215,2]
[375855966,1753761065513,-151.0,0.000215,2]
[375855967,1753761065523,-151.0,0.000215,2]
[375855968,1753761065533,-151.0,0.000215,2]
[375855969,1753761065543,-151.0,0.000215,2]
[375855970,1753761065553,-151.900902,0.000215,2]
[375855971,1753761065563,-153.861058,0.000215,7]
[375855972,1753761065573,-180.427728,0.000215,2]
[375855973,1753761065583,-180.427728,0.000215,2]
[375855974,1753761065592,-180.427728,0.000215,2]
[375855975,1753761065602,-180.427728,0.000215,2]
[375855976,1753761065611,-220.556044,0.000215,2]
[375855977,1753761065621,-151.0,0.000215,2]
[375855978,1753761065633,-151.0,0.000215,2]
[375855979,1753761065643,-151.0,0.000215,2]
[375855980,1753761065652,-151.0,0.000215,2]
[375855981,1753761065662,-151.0,0.000215,2]
[375855982,1753761065672,-151.0,0.000215,2]
[375855983,1753761065682,-151.0,0.000215,2]
[375855984,1753761065691,-151.0,0.000215,2]
[375855985,1753761065701,-151.0,0.000215,2]
[375855986,1753761065713,-151.0,0.000215,2]
[375855987,1753761065723,-151.367434,0.000215,2]
[375855988,1753761065732,-185.979118,0.000215,2]
[375855989,1753761065742,-151.0,0.000215,2]
[375855990,1753761065751,-151.0,0.000215,2]
[375855991,1753761065760,-151.0,0.000215,2]
[375855992,1753761065771,-230.579603,0.000215,2]
[375855993,1753761065781,-230.579603,0.000215,2]
[375855994,1753761065790,-230.579603,0.000215,2]
[375855995,1753761065799,-152.227659,0.000215,2]
[375855996,1753761065809,-393.076578,0.000215,2]
[375855997,1753761065818,-393.076578,0.000215,2]
[375855998,1753761065827,-393.076578,0.000215,2]
[375855999,1753761065836,-393.076578,0.000215,2]
[375856000,1753761065846,-393.076578,0.000215,2]
[375856001,1753761065856,-393.076578,0.000215,2]
[375856002,1753761065865,-151.0,0.000215,2]
[375856003,1753761065875,-151.0,0.000215,2]
[375856004,1753761065884,-246.71041,0.000215,2]
[375856005,1753761065893,-246.71041,0.000215,2]
[375856006,1753761065902,-246.71041,0.000215,2]
[375856007,1753761065911,-246.71041,0.000215,2]
[375856008,1753761065921,-246.71041,0.000215,2]
[375856009,1753761065931,-246.71041,0.000215,2]
[375856010,1753761065940,-151.0,0.000215,2]
[375856011,1753761065949,-151.0,0.000215,2]
[375856012,1753761065959,-151.0,0.000215,2]
[375856013,1753761065968,-151.0,0.000215,2]
[375856014,1753761065977,-257.133657,0.000215,2]
[375856015,1753761065987,-151.0,0.000215,2]
[375856016,1753761065997,-151.0,0.000215,2]
[375856017,1753761066006,-151.0,0.000215,2]
[375856018,1753761066016,-152.53959,0.000215,2]
[375856019,1753761066026,-151.0,0.000215,2]
[375856020,1753761066035,-151.0,0.000215,2]
[375856021,1753761066045,-151.0,0.000215,2]
[375856022,1753761066055,-151.0,0.000215,2]
[375856023,1753761066065,-152.999465,0.000215,2]
[375856024,1753761066075,-151.0,0.000215,2]
[375856025,1753761066085,-151.0,0.000215,2]
[375856026,1753761066213,-151.0,0.000215,2]
[375856027,1753761066224,-151.0,0.000215,2]
[375856028,1753761066233,-151.0,0.000215,2]
[375856029,1753761066243,-151.0,0.000215,2]
[375856030,1753761066253,-151.0,0.000215,2]
[375856031,1753761066263,-151.0,0.000215,2]
[375856032,1753761066275,-151.0,0.000215,2]
[375856033,1753761066285,-700.79611,0.000215,2]
[375856034,1753761066295,-700.79611,0.000215,2]
[375856035,1753761066305,-700.79611,0.000215,2]
[375856036,1753761066314,-700.79611,0.000215,2]
[375856037,1753761066324,-700.79611,0.000215,2]
[375856038,1753761066334,-700.79611,0.000215,2]
[375856039,1753761066343,-151.0,0.000215,2]
[375856040,1753761066353,-151.0,0.000215,2]
[375856041,1753761066362,-151.0,0.000215,2]
[375856042,1753761066372,-151.0,0.000215,2]
[375856043,1753761066382,-151.0,0.000215,2]
[375856044,1753761066392,-151.0,0.000215,2]
[375856045,1753761066401,-202.499108,0.000215,2]
[375856046,1753761066411,-151.0,0.000215,2]
[375856047,1753761066421,-282.118123,0.000215,2]
[375856048,1753761066431,-210.825538,0.000215,2]
[375856049,1753761066441,-210.825538,0.000215,2]
[375856050,1753761066451,-210.825538,0.000215,2]
[375856051,1753761066460,-210.825538,0.000215,2]
[375856052,1753761066470,-210.825538,0.000215,2]
[375856053,1753761066480,-210.825538,0.000215,2]
[375856054,1753761066490,-151.0,0.000215,2]
[375856055,1753761066500,-255.462899,0.000215,2]
[375856056,1753761066509,-265.0,0.0002152,2]
[375856057,1753761066522,-160.0,0.00021557,4]
[375856058,1753761066532,-151.0,0.00021557,2]
[375856059,1753761066541,-154.062904,0.00021557,2]
[375856060,1753761066551,-151.0,0.00021557,2]
[375856061,1753761066560,-506.95001152,0.00021616,2]
[375856062,1753761066570,-151.0,0.00021643,2]
[375856063,1753761066580,-152.639882,0.00021643,2]
[375856064,1753761066589,-151.0,0.00021643,2]
[375856065,1753761066598,-151.0,0.00021643,2]
[375856066,1753761066608,-151.0,0.00021643,2]
[375856067,1753761066617,-151.0,0.00021643,2]
[375856068,1753761066627,-151.0,0.00021643,2]
[375856069,1753761066641,-151.0,0.00021643,2]
[375856070,1753761066651,-151.0,0.00021643,2]
[375856071,1753761066660,-151.0,0.00021643,2]
[375856072,1753761066670,-185.979118,0.00021643,2]
[375856073,1753761066683,-151.0,0.00021643,2]
[375856074,1753761066693,-460.0,0.00021643,2]
[375856075,1753761066704,-230.579603,0.00021643,2]
[375856076,1753761066715,-460.0,0.00021643,2]
[375856077,1753761066726,-460.0,0.00021643,2]
[375856078,1753761066736,-460.0,0.00021643,2]
[375856079,1753761066746,-393.076578,0.00021643,2]
[375856080,1753761066756,-393.076578,0.00021643,2]
[375856081,1753761066765,-151.0,0.00021643,2]
[375856082,1753761066776,-460.0,0.00021643,2]
[375856083,1753761066785,-460.0,0.00021643,2]
[375856084,1753761066795,-460.0,0.00021643,2]
[375856085,1753761066804,-246.71041,0.00021643,2]
[375856086,1753761066814,-246.71041,0.00021643,2]
[375856087,1753761066824,-503.68,0.00021643,2]
[375856088,1753761066833,-460.0,0.00021643,2]
[375856089,1753761066842,-460.0,0.00021643,2]